Cogmind - Beta 10.2 @@@ ROGUE MODE // 2021.09.07 @ 18:45:58 Player: Savant Result: Destroyed by D-53 Grenadier with Mini Grenade Launcher Performance ------------- Evolutions (0) 0 Regions Visited (2) 400 Robots Destroyed (17) 85 Value Destroyed (451) 451 Prototype IDs (4) 80 Alien Tech Used (0) 0 Bonus (0) 0 TOTAL SCORE: 1016 Bonus ------- None Cogmind --------- Core Integrity 0/250 Matter 187/300 Energy 160/160 System Corruption 0% Temperature Cool (0) Movement Core (450) Ox8 Location -10/Mines Parts ------- > --- POWER (1) -------- Light Nuclear Core > --- PROPULSION (2) --- (None) > --- UTILITY (2) ------ Improved Heat Sink Large Storage Unit > --- WEAPON (2) ------- Grenade Launcher > --- INVENTORY (10) --- Ion Engine Aluminum Leg Aluminum Leg Aluminum Leg Large Storage Unit Large Battery (300) High-capacity Matter Pod (0) Mining Laser Peak State ------------ > --- POWER ------------ Light Nuclear Core > --- PROPULSION ------- Aluminum Leg Aluminum Leg > --- UTILITY ---------- Improved Heat Sink Large Storage Unit > --- WEAPON ----------- Assault Rifle Light Cannon > --- INVENTORY -------- Ion Engine Light Treads Aluminum Leg Aluminum Leg Large Storage Unit Large Battery High-capacity Matter Pod Grenade Launcher Grenade Launcher Mining Laser [Rating: 12] Favorites ----------- Power Light Nuclear Core Engine Ion Engine Power Core Light Nuclear Core Propulsion Aluminum Leg Treads Light Treads Leg Aluminum Leg Utility Improved Heat Sink Device Improved Heat Sink Storage Large Storage Unit Weapon Assault Rifle Ballistic Gun Assault Rifle Ballistic Cannon Light Cannon Launcher Grenade Launcher Build | -11 -10 -10 ------- Run | Scr Mat Min Slots Evolved . | . . . Power . | . . . Propulsion . | . . . Utility . | . . . Weapon . | . . . Parts Attached 36 | 6 17 13 Power 2 | 1 1 . Engine 1 | 1 . . Core 1 | . 1 . Reactor . | . . . Propulsion 20 | 2 10 8 Treads 8 | . 4 4 Leg 12 | 2 6 4 Wheel . | . . . Hover . | . . . Flight . | . . . Utility 6 | 1 4 1 Device 4 | . 3 1 Storage 2 | 1 1 . Processor . | . . . Hackware . | . . . Protection . | . . . Artifact . | . . . Weapon 8 | 2 2 4 Energy Gun . | . . . Energy Cannon . | . . . Ballistic Gun 4 | 2 1 1 Ballistic Cannon 2 | . 1 1 Launcher 2 | . . 2 Special Weapon . | . . . Impact Weapon . | . . . Slashing Weapon . | . . . Piercing Weapon . | . . . Special Melee Weapon . | . . . Unidentified Prototypes . | . . . Parts Lost 6 | . . 6 Power . | . . . Propulsion 2 | . . 2 Utility 1 | . . 1 Weapon 3 | . . 3 Highest Loss Streak 5 | . . 5 Average Slot Usage (%) 97 | . 95 99 Engine 5 | . 8 . Core 8 | . 5 14 Treads 1 | . 1 . Leg 26 | . 26 27 Device 11 | . 10 13 Storage 14 | . 14 14 Ballistic Gun 16 | . 18 13 Ballistic Cannon 11 | . 9 14 Naked Turns . | . . . Heaviest Build 27 | 12 27 27 Greatest Support 20 | 20 20 20 Greatest Overweight (x) 1 | . 1 1 Average Overweight (x) . | . . 1 Largest Inventory Capacity 10 | 6 10 10 Average Capacity 8 | 5 7 10 Most Carried 10 | 5 8 10 Average Carried 7 | 3 5 9 Final Capacity 10 | 6 10 10 Final Carried 8 | 4 8 8 Class Distribution -------------------- 100% | Mutant Dominant Class ---------------- Mutant | -10/Materials Mutant | -10/Mines Resources | -11 -10 -10 ----------- Run | Scr Mat Min Matter Collected 778 | 211 439 128 Remotely . | . . . Salvage Created 546 | . 439 107 Parts 33 | . 26 7 Haulers Intercepted . | . . . Recyclers Shooed 5 | . 5 . Parts Field Recycled . | . . . Retrieved Matter . | . . . Parts Self-Destructed . | . . . Prevented . | . . . Kills | -11 -10 -10 ------- Run | Scr Mat Min Combat Hostiles Destroyed 15 | . 10 5 Guns 4 | . 4 . Cannons 8 | . 6 2 AOE 3 | . . 3 Classes Destroyed 3 | . 3 . Recycler 2 | . 2 . Swarmer 5 | . 2 3 Grunt 10 | . 8 2 Best Kill Streak 3 | . 3 3 Combat Bots Only 3 | . 3 3 Max Kills in Single Turn 2 | . 1 2 Gunslinging . | . . . Exploded 2 | . . 2 Melee . | . . . Uniques/NPCs Destroyed . | . . . Combat | -11 -10 -10 -------- Run | Scr Mat Min Damage Taken 1164 | . 336 828 Core 251 | . 64 187 Absorbed by Shields . | . . . Core Remaining (%) 100 | 100 . . Volleys Fired 65 | . 52 13 Largest 2 | . 2 2 Hottest 74 | . 55 74 Shots Fired 125 | . 104 21 Gun 94 | . 88 6 Cannon 27 | . 16 11 Launcher 4 | . . 4 Special . | . . . Kinetic 121 | . 104 17 Thermal . | . . . Explosive 4 | . . 4 Electromagnetic . | . . . Robot Hit Streak 13 | . 13 3 Robot Miss Streak 5 | . 5 3 Penetration Max . | . . . Secondary Targets . | . . . Shots Hit Robots 74 | . 63 11 Core Hits 36 | . 24 12 Critical Hits 1 | . 1 . Critical Kills . | . . . Critical Parts Destroyed 1 | . 1 . Melee Attacks . | . . . Impact . | . . . Slashing . | . . . Piercing . | . . . Sneak Attacks . | . . . Combat Hostiles . | . . . Follow-up Attacks . | . . . Damage Inflicted 1032 | . 697 335 Guns 519 | . 483 36 Cannons 308 | . 214 94 Explosions 205 | . . 205 Melee . | . . . Ramming . | . . . Kinetic 827 | . 697 130 Thermal . | . . . Explosive 205 | . . 205 Electromagnetic . | . . . Impact . | . . . Slashing . | . . . Piercing . | . . . Highest Corruption . | . . . Average Corruption . | . . . Corruption Purged . | . . . Overload Shots . | . . . Overflow Damage . | . . . Projectiles . | . . . Explosions . | . . . Melee . | . . . Knockbacks 6 | . 4 2 Impact . | . . . Kinetic 5 | . 3 2 Secondary 1 | . 1 . Self-Inflicted Damage 48 | . . 48 Shots 3 | . . 3 Rammed . | . . . Targets Rammed . | . . . Kicked . | . . . Crushed . | . . . Highest Temperature 9 | . 6 9 Average Temperature 6 | . 5 9 Received Heat Transfer 177 | . 141 36 Siege Activations . | . . . Robots Corrupted . | . . . Combat Hostiles . | . . . Parts Fried . | . . . Impact Corruptions . | . . . Robots Melted . | . . . Combat Hostiles . | . . . Parts Melted . | . . . Heat Transferred . | . . . Parts Sabotaged . | . . . Parts Stolen . | . . . Parts Stripped . | . . . Power Chain Reactions . | . . . Missiles Intercepted . | . . . Alert | -11 -10 -10 ------- Run | Scr Mat Min Peak Influence 190 | . 190 157 Initial 17 | . . 17 Average 61 | . 53 77 Maximum Alert Level . | . . . Low Security (%) 100 | 100 100 100 Level 1 . | . . . Level 2 . | . . . Level 3 . | . . . Level 4 . | . . . Level 5 . | . . . High Security . | . . . Max Security . | . . . Squads Dispatched 3 | . 3 . Investigation 2 | . 2 . Extermination . | . . . Reinforcement 1 | . 1 . Assault . | . . . Garrison . | . . . Intercept . | . . . Construction Impeded . | . . . Haulers Reinforced . | . . . Stealth | -11 -10 -10 --------- Run | Scr Mat Min Distress Signals 3 | . 3 . Communications Jammed . | . . . Distress Signals . | . . . Times Spotted 31 | . 24 7 Peak Tracking Total 4 | . 4 3 Tactical Retreats 4 | . 3 1 Traps | -11 -10 -10 ------- Run | Scr Mat Min Traps Triggered 1 | . 1 . Indirectly . | . . . Trap Hack Attempts . | . . . Triggered . | . . . Disarmed . | . . . Reprogrammed . | . . . Reused . | . . . Traps Extracted . | . . . Installed . | . . . Triggered . | . . . Machines | -11 -10 -10 ---------- Run | Scr Mat Min Machines Disabled 1 | . 1 . Max in Single Turn 1 | . 1 . Machines Sabotaged . | . . . Garrisons Compromised . | . . . Overloaded Fab Kills . | . . . Fab Network Shutdowns . | . . . Hacking | -11 -10 -10 --------- Run | Scr Mat Min Machines Accessed 7 | . 7 . Terminals 5 | . 5 . Fabricators . | . . . Repair Stations . | . . . Recycling Units 2 | . 2 . Scanalyzers . | . . . Garrison Access . | . . . Total Hacks 19 | . 19 . Successful 12 | . 12 . Failed 7 | . 7 . Catastrophic . | . . . Database Lockouts . | . . . Manual 7 | . 7 . Terminals 15 | . 15 . Fabricators . | . . . Repair Stations . | . . . Recycling Units 4 | . 4 . Scanalyzers . | . . . Garrison Access . | . . . Terminal Hacks 6 | . 6 . Prototype ID Bank 2 | . 2 . Branch Access Points 1 | . 1 . Unreport Threat 2 | . 2 . Locate Traps 1 | . 1 . Fabricator Hacks . | . . . Repair Station Hacks . | . . . Recycling Unit Hacks 2 | . 2 . Report Inventory 2 | . 2 . Scanalyzer . | . . . Garrison Access Hacks . | . . . Unauthorized Hacks 4 | . 4 . Terminals 2 | . 2 . Botnet 2 | . 2 . Fabricators . | . . . Repair Stations . | . . . Recycling Units 2 | . 2 . Tunnel 2 | . 2 . Scanalyzers . | . . . Garrison Access . | . . . Data Cores Recovered . | . . . Used . | . . . Hacking Detections 5 | . 5 . Full Trace Events . | . . . Feedback Events . | . . . Feedback Blocked . | . . . Robot Schematics Acquired . | . . . Robots Built . | . . . Matter . | . . . Time . | . . . Total Robot Build Rating . | . . . Part Schematics Acquired . | . . . Parts Built . | . . . Matter . | . . . Time . | . . . Total Part Build Rating . | . . . Parts Repaired . | . . . Time . | . . . Parts Recycled . | . . . Recycled Matter . | . . . Retrieved Matter . | . . . Retrieved Components . | . . . Parts Scanalyzed . | . . . Part Schematics Acquired . | . . . Parts Damaged . | . . . Bothacking | -11 -10 -10 ------------ Run | Scr Mat Min Used RIF Installer . | . . . Robots Hacked . | . . . Non-combat . | . . . Combat . | . . . Robot Hacks Applied . | . . . Relay Couplers Released . | . . . Robots Rewired . | . . . Allies Hacked . | . . . Hacks Repelled . | . . . Allies | -11 -10 -10 -------- Run | Scr Mat Min Total Allies . | . . . Largest Group . | . . . Highest-Rated Group . | . . . Highest-Rated Ally . | . . . Total Orders . | . . . Ally Attacks . | . . . Total Damage . | . . . Kills . | . . . Allies Corrupted . | . . . Allies Melted . | . . . Intel | -11 -10 -10 ------- Run | Scr Mat Min Robot Analysis Total . | . . . Derelict Logs Recovered . | . . . Drone Launches . | . . . Drone Recoveries . | . . . Exploration | -11 -10 -10 ------------- Run | Scr Mat Min Turns Passed 1568 | 59 867 642 Spaces Moved 950 | 42 526 382 Core 6 | 6 . . Treads 4 | . . 4 Legs 940 | 36 526 378 Wheels . | . . . Hover . | . . . Flight . | . . . Fastest Speed 50 | 50 120 150 Average Speed 136 | 110 127 150 Slowest Speed 180 | 120 150 180 Overloaded Moves . | . . . Propulsion Burnouts . | . . . Robots Hopped . | . . . Cave-ins Triggered . | . . . Exploration Rate (%) 54 | 3 85 76 Regions Visited 2 Branch Regions 1 Pre-discovered Areas 2 | . 2 . Known Exits Taken 1 | . 1 . Unknown Exits Taken 1 | 1 . . Scrap Searched 2 | . . 2 Spaces Dug . | . . . Terrain Destroyed 38 | . . 38 Melee . | . . . Projectile 1 | . . 1 AOE 37 | . . 37 Terrain Rammed . | . . . Walls Destroyed . | . . . Machines Disabled . | . . . Actions | -11 -10 -10 --------- Run | Scr Mat Min Total 1099 | 52 623 424 Wait 24 | . 11 13 Move 948 | 41 525 382 Hop . | . . . Pick Up 14 | 5 7 2 Fast Attach 10 | 5 4 1 Attach 3 | 1 . 2 Detach 1 | . 1 . Swap 23 | . 13 10 Drop 11 | . 10 1 Fire 65 | . 52 13 Melee . | . . . Ram . | . . . Kick . | . . . Crush . | . . . Escape Stasis . | . . . Rewire . | . . . Trap . | . . . Miscellaneous . | . . . Route ------- -11/Scrapyard -10/Materials (discovered 4 exits: [*Mat x2] / *Min x2) -10/Mines (discovered 2 exits: [*Mat x2]) History --------- Turn | Location | Event 8 | -11/Scrapyard | Discovered new exit (range 14) 60 | -11/Scrapyard | Entered Materials 177 | -10/Materials | Discovered new exit (range 15) 302 | -10/Materials | Build established: Mutant 366 | -10/Materials | Discovered new exit (range 8) 507 | -10/Materials | Discovered new exit (range 12) 656 | -10/Materials | Identified exit to Mines 725 | -10/Materials | Discovered new exit (range 16) 927 | -10/Materials | Entered Mines 1097 | -10/Mines | Discovered new exit (range 9) 1431 | -10/Mines | Deemed a non-threat by the Exiles lab entrance 1456 | -10/Mines | A weapon hastily lodged in a ceiling crevice suddenly fell to the ground 1494 | -10/Mines | Discovered new exit (range 14) 1495 | -10/Mines | Assembled infested the area 1556 | -10/Mines | Core integrity fell below 50% 1565 | -10/Mines | Core integrity fell below 20% 1569 | -10/Mines | Destroyed by D-53 Grenadier with Mini Grenade Launcher Last Messages --------------- 01431_ "No threat detected, you may enter." 01456_ A Battle Cannon has been hastily shoved under some rubble with a note attached: "To battle!" 01459_ Dropped Grenade Launcher. 01460_ Acquired Battle Cannon. 01494_ EXIT=FOUND 01495_ ALERT: Infestation in the mines, dispatching Demolisher response squad. 01541_ C-30 ARC bursts open, deploying its payload. 01541_ D-53 Grenadier unfolds itself. 01552_ Assault Rifle destroyed. 01554_ The unstable cave ceiling collapses. 01557_ D-53 Grenadier knocked back. 01560_ The unstable cave ceiling collapses. 01560_ Lgt. Cannon destroyed. 01563_ The unstable cave ceiling collapses. 01564_ Battle Cannon destroyed. 01565_ The unstable cave ceiling collapses. 01565_ Aluminum Leg destroyed. 01567_ Lgt. Treads destroyed. 01569_ The unstable cave ceiling collapses. Map ----- +----------------------------------------------------+ | ?????????????????????? ##??????????????????? | | ???????????????????????? ?????????????????? | | ????????????????????????? ??########??????? | | ??????????????????????????# ?# #??????? | | ??????????????????????????# ## #??????? | | ??????????????????????????# #??????? | | ??????????????????????????# """ ####???? | | ??????????????????????????##### """ #???? | | ??????????????????????????????# """ ## #???? | | ??????????????????????????????# ## ##### | | ??????????????????????????????# ## | | ??????????????????????????????######### ##### | | ??????????????????????????????#####???# #???? | | ?????????????????????????????## ##??# #???? | | ????????????????????????????## #### #???? | | ????????????????????????????# " # ##### | | ?????????????????####???????# % | | ?????????????????? =######## | | ???????????????????#% # # ########## | | ??????????????????? |t ##????????# | | ?????????????????### #?????????# | | ????????????????## d ##?????????# | | ???????????????## ##??????????# | | ???????????????# #???????????# | | ?????????????# # # ##???????????## | | ?????????????# @ d ###?????????????? | | ?????????????### ##???????????????? | | ???????????????# # #???????????????? | | ???????????????## ###???????????????? | | ????????????????## # ##?????????????????? | | ?????????????????#########??????????????????? | | ????????????????????????????????????????????? | | ????????????????????????????????????????????? | | ????????????????????????????????????????????? | | | | | | | | | | | | | | | | | | | | | | | | | | | | | | | | | +----------------------------------------------------+ Best States ------------- Heat Dissipation 39 Energy Generation 14 Energy Capacity 250 Matter Stores 287 Matter Capacity 300 Sight Range 16 Terrain Scan Density 10 Evasion (%) 40 Recoil Reduction 1 Item Schematics ----------------- None Robot Schematics ------------------ None Fabricated ------------ Nothing Alien Tech Used ----------------- None Achievements -------------- None Challenges ------------ None Game ------ Seed OmegaIonCore Manual? 0 Play Time 00:12:30 Cumulative 215.7 hours Start 2021.09.07 @ 18:33:57 End 2021.09.07 @ 18:45:58 Sessions 1 Manual Loads 0 Difficulty Rogue Special Mode None Game No. 62 Rogue 62 Adventurer 0 Explorer 0 Win Type - Total 11 Types 9/0/2/0/0/0/0/0/0 Lore% 85 Gallery% 87 Achievement% 69 Wizard Run 0 Options --------- ASCII 0 Keyboard 0 Movement Numpad Keybinds 0 Fullscreen 1 Font 14/SmallcapsGlow Map View 84x54 Tactical HUD 1 Map Filters NONE Filters NONE Steam 1 RUN: 97400ea0-3876-4663-998c-a6e21727eea7